Cogmind - Beta 12 *** ADVENTURER MODE // 2023.04.06 @ 03:52:27 Player: shisihs Result: Destroyed by Y-54 Guardian with Gatling Laser Performance ------------- Evolutions (3) 1500 Regions Visited (5) 1000 Robots Destroyed (26) 130 Value Destroyed (1174) 1174 Prototype IDs (7) 140 Alien Tech Used (0) 0 Bonus (834) 834 TOTAL SCORE: 4778 Bonus ------- Pacifist 834 Cogmind --------- Core Integrity 0/700 Matter 255/300 Energy 150/150 System Corruption 6% Temperature Cool (12) Movement Flying (432) Ox5 Location -7/Factory Parts ------- > --- POWER (3) -------- Micro Nuclear Core > --- PROPULSION (3) --- VTOL Module Cesium-ion Thruster > --- UTILITY (5) ------ High-capacity Storage Unit Improved Targeting Computer Transmission Jammer > --- WEAPON (2) ------- Improved Spread Laser Remote Datajack > --- INVENTORY (20) --- Airjet Improved Spread Laser Peak State ------------ > --- POWER ------------ Improved Deuterium Engine Heavy Deuterium Engine Micro Nuclear Core > --- PROPULSION ------- Aerolev Unit Aerolev Unit Aerolev Unit > --- UTILITY ---------- Small Storage Unit Structural Scanner Advanced ECM Suite Improved Light Armor Plating Improved Medium Armor Plating > --- WEAPON ----------- Cooled Pulse Rifle Gauss Cannon > --- INVENTORY -------- Improved Deuterium Engine Improved Deuterium Engine Heavy Deuterium Engine Cesium-ion Thruster Improved VTOL Module Improved VTOL Module Improved VTOL Module Xenon Bombardment Thruster [Rating: 50] Favorites ----------- Power Improved Deuterium Engine Engine Improved Deuterium Engine Power Core Micro Nuclear Core Propulsion Aerolev Unit Hover Unit Aerolev Unit Flight Unit Improved VTOL Module Utility Improved Targeting Computer Device Trap Extractor Storage Small Storage Unit Processor Improved Targeting Computer Protection Improved Light Armor Plating Weapon Improved Spread Laser Energy Gun Improved Spread Laser Ballistic Cannon Gauss Cannon Launcher Rocket Launcher Special Weapon Remote Datajack Special Melee Weapon Improved Datajack Build | -11 -10 -10 -9 -8 -7 ------- Run | Jun Mat Min Mat Mat Fac Slots Evolved 6 | . . . 2 2 2 Power 2 | . . . 1 1 . Propulsion 1 | . . . . . 1 Utility 3 | . . . 1 1 1 Weapon . | . . . . . . Parts Attached 69 | . 1 . 1 . 67 Power 14 | . . . 1 . 13 Engine 11 | . . . 1 . 10 Core 3 | . . . . . 3 Reactor . | . . . . . . Propulsion 16 | . . . . . 16 Treads . | . . . . . . Leg . | . . . . . . Wheel . | . . . . . . Hover 5 | . . . . . 5 Flight 11 | . . . . . 11 Utility 23 | . 1 . . . 22 Device 10 | . . . . . 10 Storage 6 | . 1 . . . 5 Processor 3 | . . . . . 3 Hackware . | . . . . . . Protection 4 | . . . . . 4 Artifact . | . . . . . . Weapon 16 | . . . . . 16 Energy Gun 7 | . . . . . 7 Energy Cannon . | . . . . . . Ballistic Gun . | . . . . . . Ballistic Cannon 1 | . . . . . 1 Launcher 3 | . . . . . 3 Special Weapon 1 | . . . . . 1 Impact Weapon . | . . . . . . Slashing Weapon . | . . . . . . Piercing Weapon . | . . . . . . Special Melee Weapon 4 | . . . . . 4 Unidentified Prototypes 7 | . . . 1 . 6 Parts Lost 30 | . . . . . 30 Power 8 | . . . . . 8 Propulsion 7 | . . . . . 7 Utility 9 | . . . . . 9 Weapon 6 | . . . . . 6 Highest Loss Streak 8 | . . . . . 8 To Critical Strikes . | . . . . . . Average Slot Usage (%) 60 | . . . . . 67 Engine 12 | . . . . . 13 Core 3 | . . . . . 4 Hover 7 | . . . . . 8 Flight 7 | . . . . . 8 Device 9 | . . . . . 10 Storage 3 | . . . . . 3 Processor 3 | . . . . . 3 Protection 2 | . . . . . 2 Energy Gun 6 | . . . . . 7 Special Melee Weapon 1 | . . . . . 1 Naked Turns 480 | . 19 204 126 69 62 Heaviest Build 57 | . . . . . 57 Greatest Support 25 | 3 3 3 3 3 25 Greatest Overweight (x) 8 | . . . . . 8 Average Overweight (x) 1 | . . . . . 1 Largest Inventory Capacity 25 | 5 25 5 5 5 25 Average Capacity 6 | 5 6 5 5 5 7 Most Carried 8 | . 1 5 5 5 8 Average Carried 5 | . . 3 5 5 5 Final Capacity 20 | 5 5 5 5 5 20 Final Carried 5 | . 1 5 5 5 2 Class Distribution -------------------- 84% | Mutant 13% | Infiltrator-Mutant Dominant Class ---------------- Mutant | -10/Mines Mutant | -9/Materials Mutant | -8/Materials Mutant | -7/Factory Resources | -11 -10 -10 -9 -8 -7 ----------- Run | Jun Mat Min Mat Mat Fac Matter Collected 827 | 50 . . . . 777 Remotely . | . . . . . . Salvage Created 906 | . . . . . 906 Parts 39 | . . . . . 39 Haulers Intercepted . | . . . . . . Recyclers Shooed . | . . . . . . Parts Field Recycled 7 | . . . . . 7 Retrieved Matter 127 | . . . . . 127 Parts Self-Destructed . | . . . . . . Prevented . | . . . . . . Kills | -11 -10 -10 -9 -8 -7 ------- Run | Jun Mat Min Mat Mat Fac Combat Hostiles Destroyed 23 | . . . . . 23 Guns 14 | . . . . . 14 Cannons 3 | . . . . . 3 AOE 5 | . . . . . 5 Classes Destroyed 10 | . . . . . 10 Builder 1 | . . . . . 1 Recycler 1 | . . . . . 1 Watcher 1 | . . . . . 1 Swarmer 3 | . . . . . 3 Grunt 10 | . . . . . 10 Brawler 1 | . . . . . 1 Duelist 1 | . . . . . 1 Sentry 1 | . . . . . 1 Hunter 1 | . . . . . 1 Programmer 6 | . . . . . 6 Best Kill Streak 5 | . . . . . 5 Combat Bots Only 4 | . . . . . 4 Max Kills in Single Turn 2 | . . . . . 2 Gunslinging . | . . . . . . Exploded 2 | . . . . . 2 Melee . | . . . . . . Uniques/NPCs Destroyed . | . . . . . . Combat | -11 -10 -10 -9 -8 -7 -------- Run | Jun Mat Min Mat Mat Fac Damage Taken 3643 | . . 50 85 320 3188 Core 1160 | . . 50 85 320 705 Absorbed by Shields . | . . . . . . Core Remaining (%) 74 | 100 . 80 78 41 . Volleys Fired 90 | . . . . . 90 Largest 2 | . . . . . 2 Hottest 138 | . . . . . 138 Shots Fired 114 | . . . . . 114 Gun 91 | . . . . . 91 Cannon 15 | . . . . . 15 Launcher 8 | . . . . . 8 Special . | . . . . . . Kinetic 15 | . . . . . 15 Thermal 91 | . . . . . 91 Explosive 8 | . . . . . 8 Electromagnetic . | . . . . . . Robot Hit Streak 26 | . . . . . 26 Robot Miss Streak 2 | . . . . . 2 Penetration Max . | . . . . . . Secondary Targets . | . . . . . . Shots Hit Robots 101 | . . . . . 101 Core Hits 65 | . . . 1 . 64 Critical Kills . | . . . . . . Critical Parts Destroyed . | . . . . . . Critical Strikes 6 | . . . . . 6 Burn 1 | . . . . . 1 Blast 5 | . . . . . 5 Melee Attacks 3 | . . . . . 3 Impact . | . . . . . . Slashing . | . . . . . . Piercing . | . . . . . . Sneak Attacks 1 | . . . . . 1 Combat Hostiles . | . . . . . . Follow-up Attacks . | . . . . . . Damage Inflicted 2760 | . . 6 10 3 2741 Guns 1601 | . . . . . 1601 Cannons 394 | . . . . . 394 Explosions 658 | . . . . . 658 Melee . | . . . . . . Ramming 107 | . . 6 10 3 88 Kinetic 394 | . . . . . 394 Thermal 1601 | . . . . . 1601 Explosive 658 | . . . . . 658 Electromagnetic . | . . . . . . Impact . | . . . . . . Slashing . | . . . . . . Piercing . | . . . . . . Highest Corruption 6 | . . . . . 6 Average Corruption 5 | . . . . . 5 Corruption Purged . | . . . . . . Corruption Blocked . | . . . . . . Effects 56 | . . . . . 56 Message Errors 15 | . . . . . 15 Matter Fused 14 | . . . . . 14 Heat Flow Errors 4 | . . . . . 4 Energy Discharges 3 | . . . . . 3 Parts Rejected 1 | . . . . . 1 Parts Fused 1 | . . . . . 1 Data Loss (minor) 8 | . . . . . 8 Data Loss (major) 4 | . . . . . 4 Misfires 4 | . . . . . 4 Alerts 2 | . . . . . 2 Overload Shots . | . . . . . . Overflow Damage 6 | . . . . . 6 Projectiles . | . . . . . . Explosions 1 | . . . . . 1 Melee 5 | . . . . . 5 Knockbacks 5 | . . . . . 5 Impact 1 | . . . . . 1 Kinetic 4 | . . . . . 4 Secondary . | . . . . . . Self-Inflicted Damage 151 | . . 3 4 1 143 Shots 3 | . . . . . 3 Rammed 23 | . . 6 2 1 14 Targets Rammed 23 | . . 6 2 1 14 Kicked . | . . . . . . Crushed . | . . . . . . Highest Temperature 351 | . . . . . 351 Average Temperature 125 | . . . . . 125 Received Heat Transfer 1104 | . . 9 42 171 882 Effects 1 | . . . . . 1 Energy Bleed 1 | . . . . . 1 Siege Activations . | . . . . . . Robots Corrupted . | . . . . . . Combat Hostiles . | . . . . . . Parts Fried . | . . . . . . Impact Corruptions 1 | . . . . . 1 Robots Melted 1 | . . . . . 1 Combat Hostiles 1 | . . . . . 1 Parts Melted 5 | . . . . . 5 Heat Transferred 2673 | . . . . . 2673 Parts Sabotaged . | . . . . . . Parts Stolen . | . . . . . . Parts Stripped . | . . . . . . Power Chain Reactions . | . . . . . . Missiles Intercepted . | . . . . . . Alert | -11 -10 -10 -9 -8 -7 ------- Run | Jun Mat Min Mat Mat Fac Peak Influence 173 | . 15 34 115 161 173 Initial 62 | . . 4 10 41 62 Average 47 | . . 9 53 102 48 Maximum Alert Level . | . . . . . . Low Security (%) 100 | 100 100 100 100 100 100 Level 1 . | . . . . . . Level 2 . | . . . . . . Level 3 . | . . . . . . Level 4 . | . . . . . . Level 5 . | . . . . . . High Security . | . . . . . . Max Security . | . . . . . . Squads Dispatched 12 | . . . 1 2 9 Investigation . | . . . . . . Extermination 6 | . . . . . 6 Reinforcement 6 | . . . 1 2 3 Assault . | . . . . . . Garrison . | . . . . . . Intercept . | . . . . . . Searches Triggered . | . . . . . . Construction Impeded 1 | . . . . . 1 Haulers Reinforced . | . . . . . . Active Scanning Responses . | . . . . . . Cargo Convoy Interrupts . | . . . . . . Stealth | -11 -10 -10 -9 -8 -7 --------- Run | Jun Mat Min Mat Mat Fac Distress Signals 4 | . . . 1 2 1 Communications Jammed . | . . . . . . Distress Signals . | . . . . . . Times Spotted 72 | . . 5 8 19 40 Peak Tracking Total 16 | . . 4 5 16 5 Tactical Retreats 7 | . . 1 1 1 4 Traps | -11 -10 -10 -9 -8 -7 ------- Run | Jun Mat Min Mat Mat Fac Traps Triggered 4 | . . . . . 4 Indirectly . | . . . . . . Trap Hack Attempts . | . . . . . . Triggered . | . . . . . . Disarmed . | . . . . . . Reprogrammed . | . . . . . . Reused . | . . . . . . Traps Extracted . | . . . . . . Installed . | . . . . . . Triggered . | . . . . . . Machines | -11 -10 -10 -9 -8 -7 ---------- Run | Jun Mat Min Mat Mat Fac Machines Disabled 2 | . . . . . 2 Max in Single Turn 1 | . . . . . 1 Machines Repaired . | . . . . . . Machines Sabotaged . | . . . . . . Overloaded Fab Kills . | . . . . . . Hacking | -11 -10 -10 -9 -8 -7 --------- Run | Jun Mat Min Mat Mat Fac Machines Accessed 1 | . . . . . 1 Terminals 1 | . . . . . 1 Fabricators . | . . . . . . Repair Stations . | . . . . . . Recycling Units . | . . . . . . Scanalyzers . | . . . . . . Garrison Access . | . . . . . . Total Hacks 1 | . . . . . 1 Successful 1 | . . . . . 1 Failed . | . . . . . . Catastrophic . | . . . . . . Database Lockouts . | . . . . . . Manual . | . . . . . . Terminals 1 | . . . . . 1 Fabricators . | . . . . . . Repair Stations . | . . . . . . Recycling Units . | . . . . . . Scanalyzers . | . . . . . . Garrison Access . | . . . . . . Terminal Hacks 1 | . . . . . 1 Dispatch Records 1 | . . . . . 1 Fabricator Hacks . | . . . . . . Repair Station Hacks . | . . . . . . Recycling Unit Hacks . | . . . . . . Scanalyzer . | . . . . . . Garrison Access Hacks . | . . . . . . Unauthorized Hacks . | . . . . . . Terminals . | . . . . . . Fabricators . | . . . . . . Repair Stations . | . . . . . . Recycling Units . | . . . . . . Scanalyzers . | . . . . . . Garrison Access . | . . . . . . Data Cores Recovered . | . . . . . . Used . | . . . . . . Hacking Detections . | . . . . . . Full Trace Events . | . . . . . . Feedback Events . | . . . . . . Feedback Blocked . | . . . . . . Robot Schematics Acquired . | . . . . . . Robots Built . | . . . . . . Authchips . | . . . . . . Time . | . . . . . . Total Robot Build Rating . | . . . . . . Part Schematics Acquired . | . . . . . . Parts Built . | . . . . . . Authchips . | . . . . . . Time . | . . . . . . Total Part Build Rating . | . . . . . . Parts Repaired . | . . . . . . Time . | . . . . . . Parts Recycled . | . . . . . . Recycled Matter . | . . . . . . Retrieved Matter . | . . . . . . Retrieved Components . | . . . . . . Parts Scanalyzed . | . . . . . . Part Schematics Acquired . | . . . . . . Parts Damaged . | . . . . . . Bothacking | -11 -10 -10 -9 -8 -7 ------------ Run | Jun Mat Min Mat Mat Fac Used RIF Installer . | . . . . . . Robots Hacked 2 | . . . . . 2 Non-combat 1 | . . . . . 1 Combat 1 | . . . . . 1 Robot Hacks Applied 2 | . . . . . 2 parse_system 1 | . . . . . 1 find_chute 1 | . . . . . 1 Relay Couplers Released . | . . . . . . Fabnet Peak Effective % . | . . . . . . Robots Rewired . | . . . . . . Allies Hacked . | . . . . . . Hacks Repelled . | . . . . . . Allies | -11 -10 -10 -9 -8 -7 -------- Run | Jun Mat Min Mat Mat Fac Total Allies . | . . . . . . Largest Group . | . . . . . . Highest-Rated Group . | . . . . . . Highest-Rated Ally . | . . . . . . Total Orders . | . . . . . . Ally Attacks . | . . . . . . Total Damage . | . . . . . . Kills . | . . . . . . Allies Corrupted . | . . . . . . Allies Melted . | . . . . . . Intel | -11 -10 -10 -9 -8 -7 ------- Run | Jun Mat Min Mat Mat Fac Robot Analysis Total . | . . . . . . Derelict Logs Recovered 1 | . . 1 . . . Drone Launches . | . . . . . . Drone Recoveries . | . . . . . . Exploration | -11 -10 -10 -9 -8 -7 ------------- Run | Jun Mat Min Mat Mat Fac Turns Passed 3911 | 9 20 204 127 69 3482 Spaces Moved 2667 | 19 34 336 246 135 1897 Core 1091 | 19 34 336 246 135 321 Treads . | . . . . . . Legs . | . . . . . . Wheels . | . . . . . . Hover 921 | . . . . . 921 Flight 655 | . . . . . 655 Fastest Speed 29 | 50 50 50 50 50 29 Average Speed 125 | 50 50 50 50 50 156 Slowest Speed 520 | 50 50 50 50 50 520 Overloaded Moves 1 | . . . . . 1 Propulsion Burnouts . | . . . . . . Robots Hopped . | . . . . . . Cave-ins Triggered . | . . . . . . Exploration Rate (%) 30 | 2 11 75 20 32 44 Regions Visited 5 Branch Regions 1 Pre-discovered Areas . | . . . . . . Known Exits Taken . | . . . . . . Unknown Exits Taken 5 | 1 1 1 1 1 . Scrap Searched . | . . . . . . Spaces Dug . | . . . . . . Terrain Destroyed 42 | . . . . . 42 Melee . | . . . . . . Projectile 2 | . . . . . 2 AOE 40 | . . . . . 40 Terrain Rammed . | . . . . . . Walls Destroyed . | . . . . . . Machines Disabled . | . . . . . . Actions | -11 -10 -10 -9 -8 -7 --------- Run | Jun Mat Min Mat Mat Fac Total 3101 | 18 36 371 249 135 2292 Wait 170 | . . 26 . . 144 Move 2662 | 18 33 335 245 134 1897 Hop . | . . . . . . Pick Up 36 | . 1 4 . . 31 Fast Attach 33 | . . . 1 . 32 Attach 26 | . 1 . . . 25 Detach 5 | . 1 . . . 4 Swap 11 | . . . . . 11 Drop 29 | . . . 1 . 28 Fire 90 | . . . . . 90 Melee 3 | . . . . . 3 Ram 23 | . . 6 2 1 14 Kick . | . . . . . . Crush . | . . . . . . Escape Stasis 13 | . . . . . 13 Rewire . | . . . . . . Trap . | . . . . . . Miscellaneous . | . . . . . . Route ------- -11/Junkyard -10/Materials -10/Mines -9/Materials -8/Materials -7/Factory History --------- Turn | Location | Event 2 | -11/Junkyard | Met Revision 17 5 | -11/Junkyard | Discovered new exit (range 12) 10 | -11/Junkyard | Entered Materials 21 | -10/Materials | Discovered new exit (range 15) 30 | -10/Materials | Entered Mines 62 | -10/Mines | Received a Rocket Launcher from a helpful Derelict 93 | -10/Mines | Learned Materials trap positions 201 | -10/Mines | A weapon hastily lodged in a ceiling crevice suddenly fell to the ground 227 | -10/Mines | Discovered new exit (range 13) 234 | -10/Mines | Entered Materials 234 | -9/Materials | Evolved 2 slots: Power x1, Utility x1 235 | -9/Materials | Loaded intel: 6 trap records 313 | -9/Materials | Build established: Mutant 357 | -9/Materials | Discovered new exit (range 5) 361 | -9/Materials | Entered another Materials area 361 | -8/Materials | Evolved 2 slots: Power x1, Utility x1 411 | -8/Materials | Core integrity fell below 50% 428 | -8/Materials | Discovered new exit (range 4) 430 | -8/Materials | Entered Factory 430 | -7/Factory | Evolved 2 slots: Propulsion x1, Utility x1 1719 | -7/Factory | Build established: Infiltrator-Mutant 2010 | -7/Factory | Lost 8 parts (1p2n3u2w) 2252 | -7/Factory | Build established: Mutant 2563 | -7/Factory | Core integrity fell below 50% 2602 | -7/Factory | Lost 6 parts (3p2u1w) 2857 | -7/Factory | Lost 3 parts (2n1u) 3274 | -7/Factory | Lost 4 parts (1p1n1u1w) 3591 | -7/Factory | Core integrity fell below 20% 3912 | -7/Factory | Destroyed by Y-54 Guardian with Gatling Laser Last Messages --------------- 03648_ Mic. Nuclear Core destroyed. 03650_ Acquired Transmission Jammer. 03653_ P-60 Hacker destroyed. 03654_ 6&J5/TNIU3M|XZDCOLI#TXSEC5XP 03660_ Acquired 10 matter. 03669_ System corrupted: FCS attempts to trigger Imp. Spread Laser. 03701_ System corrupted: Substantial component data lost. 03706_ Acquired Remote Datajack. 03708_ R-06 Scavenger collects Imp. Heat Sink. 03709_ Acquired Mic. Nuclear Core. 03711_ Acquired 20 matter. 03714_ Dropped Trap Extractor. 03717_ R-06 Scavenger collects Trap Extractor. 03739_ NETU9TM%TM0LEMZDZ